Workbook

Sheet Оригинал
A1: Доходы компании за первое полугодие 2008 года
C2: Январь | D2: Февраль | E2: Март | F2: 1 квартал | G2: Апрель | H2: Май | I2: Июнь | J2: 2 квартал | K2: Всего
A3: Москва | B3: Продажи | C3: 59345 | D3: 60234 | E3: 57456 | F3: =SUM(C3:E3) -> 177035 | G3: 60234 | H3: 57456 | I3: 59345 | J3: =SUM(G3:I3) -> 177035 | K3: =SUM(J3,F3) -> 354070
B4: Сервис | C4: 156934 | D4: 157896 | E4: 158796 | F4: =SUM(C4:E4) -> 473626 | G4: 157896 | H4: 158796 | I4: 156934 | J4: =SUM(G4:I4) -> 473626 | K4: 947252
B5: Аренда | C5: 2894321 | D5: 2789456 | E5: 2134567 | F5: =SUM(C5:E5) -> 7818344 | G5: 2789456 | H5: 2134567 | I5: 2894321 | J5: =SUM(G5:I5) -> 7818344 | K5: 15636688
B6: Итого | C6: =SUM(C3:C5) -> 3110600 | D6: 3007586 | E6: 2350819 | F6: 8469005 | G6: 3007586 | H6: 2350819 | I6: 3110600 | J6: 8469005 | K6: 16938010
A7: Питер | B7: Продажи | C7: 564 | D7: 654 | E7: 123 | F7: =SUM(C7:E7) -> 1341 | G7: 654 | H7: 123 | I7: 654 | J7: =SUM(G7:I7) -> 1431 | K7: 2772
B8: Сервис | C8: 234624 | D8: 134569 | E8: 321321 | F8: =SUM(C8:E8) -> 690514 | G8: 134569 | H8: 321321 | I8: 134569 | J8: =SUM(G8:I8) -> 590459 | K8: 1280973
B9: Аренда | C9: 2123456 | D9: 1678941 | E9: 1123756 | F9: =SUM(C9:E9) -> 4926153 | G9: 1678941 | H9: 1123756 | I9: 1678941 | J9: =SUM(G9:I9) -> 4481638 | K9: 9407791
B10: Итого | C10: =SUM(C7:C9) -> 2358644 | D10: 1814164 | E10: 1445200 | F10: 5618008 | G10: 1814164 | H10: 1445200 | I10: 1814164 | J10: 5073528 | K10: 10691536
B11: Всего | C11: =C10+C6 -> 5469244 | D11: 4821750 | E11: 3796019 | F11: 14087013 | G11: 4821750 | H11: 3796019 | I11: 4924764 | J11: 13542533 | K11: =SUM(J11,F11) -> 27629546

Sheet Скрытие строк и столбцов
A1: Доходы компании за первое полугодие 2008 года
C2: Январь | D2: Февраль | E2: Март | F2: 1 квартал | G2: Апрель | H2: Май | I2: Июнь | J2: 2 квартал | K2: Всего
A3: Москва | B3: Продажи | C3: 59345 | D3: 60234 | E3: 57456 | F3: =SUM(C3:E3) -> 177035 | G3: 60234 | H3: 57456 | I3: 59345 | J3: =SUM(G3:I3) -> 177035 | K3: =SUM(J3,F3) -> 354070
B4: Сервис | C4: 156934 | D4: 157896 | E4: 158796 | F4: =SUM(C4:E4) -> 473626 | G4: 157896 | H4: 158796 | I4: 156934 | J4: =SUM(G4:I4) -> 473626 | K4: 947252
B5: Аренда | C5: 2894321 | D5: 2789456 | E5: 2134567 | F5: =SUM(C5:E5) -> 7818344 | G5: 2789456 | H5: 2134567 | I5: 2894321 | J5: =SUM(G5:I5) -> 7818344 | K5: 15636688
B6: Итого | C6: =SUM(C3:C5) -> 3110600 | D6: 3007586 | E6: 2350819 | F6: 8469005 | G6: 3007586 | H6: 2350819 | I6: 3110600 | J6: 8469005 | K6: 16938010
A7: Питер | B7: Продажи | C7: 564 | D7: 654 | E7: 123 | F7: =SUM(C7:E7) -> 1341 | G7: 654 | H7: 123 | I7: 654 | J7: =SUM(G7:I7) -> 1431 | K7: 2772
B8: Сервис | C8: 234624 | D8: 134569 | E8: 321321 | F8: =SUM(C8:E8) -> 690514 | G8: 134569 | H8: 321321 | I8: 134569 | J8: =SUM(G8:I8) -> 590459 | K8: 1280973
B9: Аренда | C9: 2123456 | D9: 1678941 | E9: 1123756 | F9: =SUM(C9:E9) -> 4926153 | G9: 1678941 | H9: 1123756 | I9: 1678941 | J9: =SUM(G9:I9) -> 4481638 | K9: 9407791
B10: Итого | C10: =SUM(C7:C9) -> 2358644 | D10: 1814164 | E10: 1445200 | F10: 5618008 | G10: 1814164 | H10: 1445200 | I10: 1814164 | J10: 5073528 | K10: 10691536
B11: Всего | C11: =C10+C6 -> 5469244 | D11: 4821750 | E11: 3796019 | F11: 14087013 | G11: 4821750 | H11: 3796019 | I11: 4924764 | J11: 13542533 | K11: =SUM(J11,F11) -> 27629546

Sheet Группировка
A1: Доходы компании за первое полугодие 2008 года
C2: Январь | D2: Февраль | E2: Март | F2: 1 квартал | G2: Апрель | H2: Май | I2: Июнь | J2: 2 квартал | K2: Всего
A3: Москва | B3: Продажи | C3: 59345 | D3: 60234 | E3: 57456 | F3: =SUM(C3:E3) -> 177035 | G3: 60234 | H3: 57456 | I3: 59345 | J3: =SUM(G3:I3) -> 177035 | K3: =SUM(J3,F3) -> 354070
B4: Сервис | C4: 156934 | D4: 157896 | E4: 158796 | F4: =SUM(C4:E4) -> 473626 | G4: 157896 | H4: 158796 | I4: 156934 | J4: =SUM(G4:I4) -> 473626 | K4: 947252
B5: Аренда | C5: 2894321 | D5: 2789456 | E5: 2134567 | F5: =SUM(C5:E5) -> 7818344 | G5: 2789456 | H5: 2134567 | I5: 2894321 | J5: =SUM(G5:I5) -> 7818344 | K5: 15636688
B6: Итого | C6: =SUM(C3:C5) -> 3110600 | D6: 3007586 | E6: 2350819 | F6: 8469005 | G6: 3007586 | H6: 2350819 | I6: 3110600 | J6: 8469005 | K6: 16938010
A7: Питер | B7: Продажи | C7: 564 | D7: 654 | E7: 123 | F7: =SUM(C7:E7) -> 1341 | G7: 654 | H7: 123 | I7: 654 | J7: =SUM(G7:I7) -> 1431 | K7: 2772
B8: Сервис | C8: 234624 | D8: 134569 | E8: 321321 | F8: =SUM(C8:E8) -> 690514 | G8: 134569 | H8: 321321 | I8: 134569 | J8: =SUM(G8:I8) -> 590459 | K8: 1280973
B9: Аренда | C9: 2123456 | D9: 1678941 | E9: 1123756 | F9: =SUM(C9:E9) -> 4926153 | G9: 1678941 | H9: 1123756 | I9: 1678941 | J9: =SUM(G9:I9) -> 4481638 | K9: 9407791
B10: Итого | C10: =SUM(C7:C9) -> 2358644 | D10: 1814164 | E10: 1445200 | F10: 5618008 | G10: 1814164 | H10: 1445200 | I10: 1814164 | J10: 5073528 | K10: 10691536
B11: Всего | C11: =C10+C6 -> 5469244 | D11: 4821750 | E11: 3796019 | F11: 14087013 | G11: 4821750 | H11: 3796019 | I11: 4924764 | J11: 13542533 | K11: =SUM(J11,F11) -> 27629546

Sheet Макрос
D1: x | H1: x | I1: x
A2: x | B2: Доходы компании за первое полугодие 2008 года
D3: Январь | E3: Февраль | F3: Март | G3: 1 квартал | H3: Апрель | I3: Май | J3: Июнь | K3: 2 квартал | L3: Всего
B4: Москва | C4: Продажи | D4: 59345 | E4: 60234 | F4: 57456 | G4: =SUM(D4:F4) -> 177035 | H4: 60234 | I4: 57456 | J4: 59345 | K4: =SUM(H4:J4) -> 177035 | L4: =SUM(K4,G4) -> 354070
C5: Сервис | D5: 156934 | E5: 157896 | F5: 158796 | G5: =SUM(D5:F5) -> 473626 | H5: 157896 | I5: 158796 | J5: 156934 | K5: =SUM(H5:J5) -> 473626 | L5: 947252
C6: Аренда | D6: 2894321 | E6: 2789456 | F6: 2134567 | G6: =SUM(D6:F6) -> 7818344 | H6: 2789456 | I6: 2134567 | J6: 2894321 | K6: =SUM(H6:J6) -> 7818344 | L6: 15636688
C7: Итого | D7: =SUM(D4:D6) -> 3110600 | E7: 3007586 | F7: 2350819 | G7: 8469005 | H7: 3007586 | I7: 2350819 | J7: 3110600 | K7: 8469005 | L7: 16938010
A8: x | B8: Питер | C8: Продажи | D8: 564 | E8: 654 | F8: 123 | G8: =SUM(D8:F8) -> 1341 | H8: 654 | I8: 123 | J8: 654 | K8: =SUM(H8:J8) -> 1431 | L8: 2772
A9: x | C9: Сервис | D9: 234624 | E9: 134569 | F9: 321321 | G9: =SUM(D9:F9) -> 690514 | H9: 134569 | I9: 321321 | J9: 134569 | K9: =SUM(H9:J9) -> 590459 | L9: 1280973
A10: x | C10: Аренда | D10: 2123456 | E10: 1678941 | F10: 1123756 | G10: =SUM(D10:F10) -> 4926153 | H10: 1678941 | I10: 1123756 | J10: 1678941 | K10: =SUM(H10:J10) -> 4481638 | L10: 9407791
A11: x | C11: Итого | D11: =SUM(D8:D10) -> 2358644 | E11: 1814164 | F11: 1445200 | G11: 5618008 | H11: 1814164 | I11: 1445200 | J11: 1814164 | K11: 5073528 | L11: 10691536
C12: Всего | D12: =D11+D7 -> 5469244 | E12: 4821750 | F12: 3796019 | G12: 14087013 | H12: 4821750 | I12: 3796019 | J12: 4924764 | K12: 13542533 | L12: =SUM(K12,G12) -> 27629546

Sheet Скрытие по цвету
A1: Доходы компании за первое полугодие 2008 года
C2: Январь | D2: Февраль | E2: Март | F2: 1 квартал | G2: Апрель | H2: Май | I2: Июнь | J2: 2 квартал | K2: Всего
A3: Москва | B3: Продажи | C3: 59345 | D3: 60234 | E3: 57456 | F3: =SUM(C3:E3) -> 177035 | G3: 60234 | H3: 57456 | I3: 59345 | J3: =SUM(G3:I3) -> 177035 | K3: =SUM(J3,F3) -> 354070
B4: Сервис | C4: 156934 | D4: 157896 | E4: 158796 | F4: =SUM(C4:E4) -> 473626 | G4: 157896 | H4: 158796 | I4: 156934 | J4: =SUM(G4:I4) -> 473626 | K4: 947252
B5: Аренда | C5: 2894321 | D5: 2789456 | E5: 2134567 | F5: =SUM(C5:E5) -> 7818344 | G5: 2789456 | H5: 2134567 | I5: 2894321 | J5: =SUM(G5:I5) -> 7818344 | K5: 15636688
B6: Итого | C6: =SUM(C3:C5) -> 3110600 | D6: 3007586 | E6: 2350819 | F6: 8469005 | G6: 3007586 | H6: 2350819 | I6: 3110600 | J6: 8469005 | K6: 16938010
A7: Питер | B7: Продажи | C7: 564 | D7: 654 | E7: 123 | F7: =SUM(C7:E7) -> 1341 | G7: 654 | H7: 123 | I7: 654 | J7: =SUM(G7:I7) -> 1431 | K7: 2772
B8: Сервис | C8: 234624 | D8: 134569 | E8: 321321 | F8: =SUM(C8:E8) -> 690514 | G8: 134569 | H8: 321321 | I8: 134569 | J8: =SUM(G8:I8) -> 590459 | K8: 1280973
B9: Аренда | C9: 2123456 | D9: 1678941 | E9: 1123756 | F9: =SUM(C9:E9) -> 4926153 | G9: 1678941 | H9: 1123756 | I9: 1678941 | J9: =SUM(G9:I9) -> 4481638 | K9: 9407791
B10: Итого | C10: =SUM(C7:C9) -> 2358644 | D10: 1814164 | E10: 1445200 | F10: 5618008 | G10: 1814164 | H10: 1445200 | I10: 1814164 | J10: 5073528 | K10: 10691536
B11: Всего | C11: =C10+C6 -> 5469244 | D11: 4821750 | E11: 3796019 | F11: 14087013 | G11: 4821750 | H11: 3796019 | I11: 4924764 | J11: 13542533 | K11: =SUM(J11,F11) -> 27629546

Sheet Скрытие по цвету усл.форматир.
A1: Тип | B1: Производитель | C1: Модель | D1: Партия (штук)
A2: Monitor | B2: Hitachi | C2: 21" "CM813ET Plus" USB | D2: 30
A3: Monitor | B3: Samsung | C3: 19" "950p" | D3: 5
A4: Monitor | B4: LG | C4: 17" "StudioWorks 77M" | D4: 15
A5: HDD | B5: SEAGATE | C5: 36700 Mb SCSI "ST336704LWL" | D5: 10
A6: CPU | B6: INTEL | C6: Pentium III 1000MHz | D6: 30
A7: CPU | B7: AMD | C7: DURON 650 | D7: 20
A8: HDD | B8: IBM | C8: 45000 Mb IDE "DTLA-307045" | D8: 30
A9: CPU | B9: INTEL | C9: Pentium III 800MHz | D9: 4
A10: HDD | B10: WESTERN DIGITAL | C10: 30700 Mb IDE "Caviar 307AA" | D10: 10
A11: VIDEO Card | B11: ASUS | C11: 16Mb V7100 "GeForce2 MX" | D11: 15
A12: HDD | B12: FUJITSU | C12: 20490 Mb IDE "MPF3204AT" | D12: 15
A13: CPU | B13: AMD | C13: ATHLON 750 | D13: 8
A14: CPU | B14: INTEL | C14: Celeron 500MHz | D14: 30
A15: VIDEO Card | B15: ATI | C15: 16Mb 3D RAGE128 | D15: 20
A16: VIDEO Card | B16: DIAMOND | C16: 16Mb VIPER V550 | D16: 25
A17: CPU | B17: INTEL | C17: Celeron 366MHz | D17: 20
A18: RAM | B18: Kingston | C18: DIMM 256Mb | D18: 20
A19: RAM | B19: M.Tec | C19: DIMM 256Mb | D19: 20
A20: RAM | B20: M.Tec | C20: DIMM 128Mb | D20: 30
A21: Monitor | B21: Sony | C21: 19" CPD-E400E "FD Trinitron" | D21: 5
A22: HDD | B22: IBM | C22: 76800 Mb IDE "DTLA-307075" | D22: 20
A23: VIDEO Card | B23: ASUS | C23: 32Mb V7700 "GeForce2 GTS" DDR | D23: 6
A24: Monitor | B24: Hitachi | C24: 17" "CM643ET" | D24: 10
A25: Monitor | B25: Samsung | C25: 17" "750s" | D25: 10
A26: HDD | B26: SEAGATE | C26: 36700 Mb SCSI "ST336704LWL" | D26: 20
A27: CPU | B27: INTEL | C27: Pentium III 1000MHz | D27: 25
